fUSD/lending_fUSD_20240109
["ID","MTS","AMOUNT","RATE_DAILY","PERIOD"]
[310928204,1704822672701,-690.78,0.00041095,30]
[310928205,1704822672711,-2000.0,0.00041095,30]
[310928206,1704822672721,-690.80331627,0.00041095,30]
[310928207,1704822672730,-500.0,0.00041095,30]
[310928208,1704822672740,-500.0,0.00041095,30]
[310928209,1704822672750,-3062.67,0.00041095,30]
[310928210,1704822672759,-637.53,0.00041095,30]
[310928211,1704822672769,-500.0,0.00041095,30]
[310928212,1704822672782,-515.39261491,0.00041095,30]
[310928213,1704822672792,-500.0,0.00041095,30]
[310928214,1704822672801,-500.0,0.00041095,30]
[310928215,1704822672811,-500.0,0.00041095,30]
[310928216,1704822672820,-500.0,0.00041095,30]
[310928217,1704822672830,-500.0,0.00041095,30]
[310928218,1704822672840,-500.0,0.00041095,30]
[310928219,1704822672849,-555.11102525,0.00041095,30]
[310928220,1704822672859,-500.0,0.00041095,30]
[310928221,1704822672869,-500.0,0.00041095,30]
[310928222,1704822672879,-500.0,0.00041095,30]
[310928223,1704822672889,-951.54,0.00041095,30]
[310928224,1704822672899,-500.0,0.00041095,30]
[310928225,1704822672908,-510.43825953,0.00041095,30]
[310928226,1704822672917,-500.0,0.00041095,30]
[310928227,1704822672927,-1554.84,0.00041095,30]
[310928228,1704822672940,-783.64,0.00041095,30]
[310928229,1704822672950,-500.0,0.00041095,30]
[310928230,1704822672960,-500.0,0.00041095,30]
[310928231,1704822672969,-500.0,0.00041095,30]
[310928232,1704822672978,-500.0,0.00041095,30]
[310928233,1704822672987,-352.30765699,0.00041095,30]
[310928234,1704822672996,-500.0,0.00041095,30]
[310928235,1704822673006,-500.0,0.00041095,30]
[310928236,1704822673016,-500.0,0.00041095,30]
[310928237,1704822673026,-1000.0,0.00041095,2]
[310928238,1704822673035,-955.99,0.00041095,30]
[310928239,1704822673045,-500.0,0.00041095,30]
[310928240,1704822673054,-418.74661205,0.00041095,30]
[310928241,1704822673065,-584.0,0.00041095,30]
[310928242,1704822673074,-500.0,0.00041095,30]
[310928243,1704822673084,-506.72810939,0.00041095,30]
[310928244,1704822673094,-500.0,0.00041095,30]
[310928245,1704822673104,-500.0,0.00041095,30]
[310928246,1704822673114,-500.0,0.00041095,30]
[310928247,1704822673123,-500.0,0.00041095,30]
[310928248,1704822673133,-500.0,0.00041095,30]
[310928249,1704822673143,-742.2,0.00041095,30]
[310928250,1704822673154,-667.03,0.00041095,30]
[310928251,1704822673164,-577.07073265,0.00041095,30]
[310928252,1704822673174,-500.0,0.00041095,30]
[310928253,1704822673188,-500.0,0.00041095,30]
[310928254,1704822673198,-500.0,0.00041095,30]
[310928255,1704822673209,-500.0,0.00041095,30]
[310928256,1704822673219,-500.0,0.00041095,30]
[310928257,1704822673230,-1579.23,0.00041095,30]
[310928258,1704822673241,-500.0,0.00041095,30]
[310928259,1704822673252,-500.0,0.00041095,30]
[310928260,1704822673262,-1683.26,0.00041095,30]
[310928261,1704822673273,-506.40764065,0.00041095,30]
[310928262,1704822673283,-500.0,0.00041095,30]
[310928263,1704822673294,-500.0,0.00041095,30]
[310928264,1704822673304,-500.0,0.00041095,30]
[310928265,1704822673314,-500.0,0.00041095,30]
[310928266,1704822673325,-500.0,0.00041095,30]
[310928267,1704822673335,-500.0,0.00041095,30]
[310928268,1704822673346,-732.8,0.00041095,30]
[310928269,1704822673358,-500.0,0.00041095,30]
[310928270,1704822673368,-500.0,0.00041095,30]
[310928271,1704822673379,-500.0,0.00041095,30]
[310928272,1704822673388,-500.0,0.00041095,30]
[310928273,1704822673398,-500.0,0.00041095,30]
[310928274,1704822673408,-1701.57,0.00041095,30]
[310928275,1704822673418,-609.24,0.00041095,30]
[310928276,1704822673427,-500.0,0.00041095,30]
[310928277,1704822673442,-995.31,0.00041095,30]
[310928278,1704822673452,-500.0,0.00041095,30]
[310928279,1704822673666,-500.0,0.00041095,30]
[310928280,1704822673676,-500.0,0.00041095,30]
[310928281,1704822673689,-539.48367402,0.00041095,30]
[310928282,1704822673699,-500.0,0.00041095,30]
[310928283,1704822673708,-500.0,0.00041095,30]
[310928284,1704822673717,-515.13546854,0.00041095,30]
[310928285,1704822673727,-546.32,0.00041095,30]
[310928286,1704822673736,-1289.05,0.00041095,30]
[310928287,1704822673745,-1075.03,0.00041095,30]
[310928288,1704822673754,-500.0,0.00041095,30]
[310928289,1704822673764,-500.0,0.00041095,30]
[310928290,1704822673774,-500.0,0.00041095,30]
[310928291,1704822673783,-500.0,0.00041095,30]
[310928292,1704822673793,-500.0,0.00041095,30]
[310928293,1704822673803,-500.0,0.00041095,30]
[310928294,1704822673836,-1605.53,0.00041095,30]
[310928295,1704822673846,-500.0,0.00041095,30]
[310928296,1704822673856,-1111.16,0.00041095,30]
[310928297,1704822673865,-500.0,0.00041095,30]
[310928298,1704822673875,-500.0,0.00041095,30]
[310928299,1704822673884,-500.0,0.00041095,30]
[310928300,1704822673894,-746.35,0.00041095,30]
[310928301,1704822673903,-500.0,0.00041095,30]
[310928302,1704822673913,-500.0,0.00041095,30]
[310928303,1704822673922,-500.0,0.00041095,30]
[310928304,1704822673932,-1189.53,0.00041095,30]
[310928305,1704822673943,-500.0,0.00041095,30]
[310928306,1704822673953,-388.64794056,0.00041095,30]
[310928307,1704822673962,-500.0,0.00041095,30]
[310928308,1704822673972,-500.0,0.00041095,30]
[310928309,1704822673981,-500.0,0.00041095,30]
[310928310,1704822673990,-500.0,0.00041095,30]
[310928311,1704822674000,-504.77266155,0.00041095,30]
[310928312,1704822674009,-500.0,0.00041095,30]
[310928313,1704822674019,-927.99,0.00041095,30]
[310928314,1704822674028,-566.22,0.00041095,30]
[310928315,1704822674037,-1587.98,0.00041095,30]
[310928316,1704822674047,-500.0,0.00041095,30]
[310928317,1704822674056,-500.0,0.00041095,30]
[310928318,1704822674065,-665.79,0.00041095,30]
[310928319,1704822674074,-1083.99,0.00041095,30]
[310928320,1704822674084,-500.0,0.00041095,30]
[310928321,1704822674093,-1352.1,0.00041095,30]
[310928322,1704822674102,-500.0,0.00041095,30]
[310928323,1704822674112,-500.0,0.00041095,30]
[310928324,1704822674121,-500.0,0.00041095,30]
[310928325,1704822674131,-500.0,0.00041095,30]
[310928326,1704822674141,-502.58556241,0.00041095,30]
[310928327,1704822674151,-500.0,0.00041095,30]
[310928328,1704822674161,-500.0,0.00041095,30]
[310928329,1704822674171,-657.61,0.00041095,30]
[310928330,1704822674181,-876.27,0.00041095,30]
[310928331,1704822674193,-831.46,0.00041095,30]
[310928332,1704822674203,-1499.79,0.00041095,30]
[310928333,1704822674212,-1165.49,0.00041095,30]
[310928334,1704822674222,-500.0,0.00041095,30]
[310928335,1704822674232,-500.0,0.00041095,30]
[310928336,1704822674242,-1224.45,0.00041095,30]
[310928337,1704822674252,-500.0,0.00041095,30]
[310928338,1704822674262,-585.09,0.00041095,30]
[310928339,1704822674272,-500.0,0.00041095,30]
[310928340,1704822674281,-500.0,0.00041095,30]
[310928341,1704822674290,-500.0,0.00041095,30]
[310928342,1704822674300,-500.0,0.00041095,30]
[310928343,1704822674310,-1187.3,0.00041095,30]
[310928344,1704822674321,-1165.31,0.00041095,30]
[310928345,1704822674332,-500.0,0.00041095,30]
[310928346,1704822674342,-500.0,0.00041095,30]
[310928347,1704822674352,-1451.41,0.00041095,30]
[310928348,1704822674361,-1109.01,0.00041095,30]
[310928349,1704822674371,-500.0,0.00041095,30]
[310928350,1704822674385,-500.0,0.00041095,30]
[310928351,1704822674395,-500.0,0.00041095,30]
[310928352,1704822674404,-1030.53,0.00041095,30]
[310928353,1704822674414,-1058.21,0.00041095,30]
[310928354,1704822674423,-713.27,0.00041095,30]
[310928355,1704822674433,-500.0,0.00041095,30]
[310928356,1704822674444,-500.0,0.00041095,30]
[310928357,1704822674453,-500.0,0.00041095,30]
[310928358,1704822674463,-500.0,0.00041095,30]
[310928359,1704822674473,-1268.66,0.00041095,30]
[310928360,1704822674485,-657.69,0.00041095,30]
[310928361,1704822674495,-500.0,0.00041095,30]
[310928362,1704822674505,-2171.66,0.00041095,30]
[310928363,1704822674515,-500.0,0.00041095,30]
[310928364,1704822674524,-500.0,0.00041095,30]
[310928365,1704822674534,-300.0,0.00041095,30]
[310928366,1704822674543,-500.0,0.00041095,30]
[310928367,1704822674553,-698.65,0.00041095,30]
[310928368,1704822674563,-816.63,0.00041095,5]
[310928369,1704822674573,-835.19,0.00041095,30]
[310928370,1704822674582,-500.0,0.00041095,30]
[310928371,1704822674592,-500.0,0.00041095,30]
[310928372,1704822674602,-500.0,0.00041095,30]
[310928373,1704822674612,-500.0,0.00041095,30]
[310928374,1704822674621,-617.92,0.00041095,30]
[310928375,1704822674631,-500.0,0.00041095,30]
[310928376,1704822674641,-3829.67,0.00041095,30]
[310928377,1704822674650,-500.0,0.00041095,30]
[310928378,1704822674660,-1000.0,0.00041095,2]
[310928379,1704822674669,-500.0,0.00041095,30]
[310928380,1704822674679,-500.0,0.00041095,2]
[310928381,1704822674689,-653.11,0.00041095,30]
[310928382,1704822674697,-500.0,0.00041095,30]
[310928383,1704822674706,-500.0,0.00041095,30]
[310928384,1704822674714,-500.0,0.00041095,30]
[310928385,1704822674722,-500.0,0.00041095,30]
[310928386,1704822674731,-500.0,0.00041095,30]
[310928387,1704822674741,-507.50880722,0.00041095,30]
[310928388,1704822674751,-1196.79,0.00041095,30]
[310928389,1704822674760,-500.0,0.00041095,30]
[310928390,1704822674770,-500.0,0.00041095,30]
[310928391,1704822674779,-500.0,0.00041095,30]
[310928392,1704822674788,-924.68,0.00041095,30]
[310928393,1704822674797,-1534.65,0.00041095,30]
[310928394,1704822674804,-1071.73,0.00041095,30]
[310928395,1704822674812,-500.0,0.00041095,30]
[310928396,1704822674819,-500.0,0.00041095,30]
[310928397,1704822674826,-3778.52,0.00041095,30]
[310928398,1704822674833,-500.0,0.00041095,30]
[310928399,1704822674840,-2000.0,0.00041095,30]
[310928400,1704822674848,-2000.0,0.00041095,30]
[310928401,1704822674855,-2000.0,0.00041095,30]
[310928402,1704822674864,-910.34,0.00041095,30]
[310928403,1704822674874,-506.73681138,0.00041095,30]
[310928404,1704822674883,-2000.0,0.00041095,30]
[310928405,1704822674893,-2000.0,0.00041095,30]
[310928406,1704822674903,-2000.0,0.00041095,30]
[310928407,1704822674912,-2000.0,0.00041095,30]
[310928408,1704822674922,-2000.0,0.00041095,30]
[310928409,1704822674931,-563.27,0.00041095,30]
[310928410,1704822674943,-2000.0,0.00041095,30]
[310928411,1704822674953,-500.0,0.00041095,30]
[310928412,1704822674962,-2000.0,0.00041095,30]
[310928413,1704822674972,-2625.83,0.00041095,30]
[310928414,1704822674981,-2000.0,0.00041095,30]
[310928415,1704822674990,-2000.0,0.00041095,30]
[310928416,1704822675001,-1003.2,0.00041095,30]
[310928417,1704822675011,-500.0,0.00041095,30]
[310928418,1704822675022,-2000.0,0.00041095,30]
[310928419,1704822675033,-1069.06,0.00041095,30]
[310928420,1704822675045,-2000.0,0.00041095,30]
[310928421,1704822675056,-693.77,0.00041095,30]
[310928422,1704822675067,-2000.0,0.00041095,30]
[310928423,1704822675078,-500.0,0.00041095,30]
[310928424,1704822675088,-2000.0,0.00041095,30]
[310928425,1704822675099,-2000.0,0.00041095,30]
[310928426,1704822675109,-500.0,0.00041095,30]
[310928427,1704822675120,-2000.0,0.00041095,30]
[310928428,1704822675130,-500.0,0.00041095,30]
[310928429,1704822675140,-3358.65,0.00041095,30]
[310928430,1704822675150,-2000.0,0.00041095,30]
[310928431,1704822675161,-2000.0,0.00041095,30]
[310928432,1704822675171,-2000.0,0.00041095,30]
[310928433,1704822675181,-2000.0,0.00041095,30]
[310928434,1704822675192,-2000.0,0.00041095,30]
[310928435,1704822675202,-775.18,0.00041095,30]
[310928436,1704822675213,-2000.0,0.00041095,30]
[310928437,1704822675223,-490.06954265,0.00041095,30]
[310928438,1704822675232,-170.66056964,0.00041095,30]
[310928439,1704822675242,-500.0,0.00041095,30]
[310928440,1704822675252,-500.0,0.00041095,30]
[310928441,1704822675262,-1018.17,0.00041095,30]
[310928442,1704822675272,-500.0,0.00041095,30]
[310928443,1704822675282,-500.0,0.00041095,30]
[310928444,1704822675292,-627.54,0.00041095,30]
[310928445,1704822675302,-1597.58,0.00041095,30]
[310928446,1704822675313,-680.27,0.00041095,30]
[310928447,1704822675323,-500.0,0.00041095,30]
[310928448,1704822675333,-1108.25,0.00041095,30]
[310928449,1704822675344,-680.58,0.00041095,30]
[310928450,1704822675354,-840.77,0.00041095,30]
[310928451,1704822675364,-500.0,0.00041095,30]
[310928452,1704822675374,-500.0,0.00041095,30]
[310928453,1704822675384,-500.0,0.00041095,30]
[310928454,1704822675394,-1005.11959458,0.00041095,2]
[310928455,1704822675404,-1688.18,0.00041095,30]
[310928456,1704822675413,-500.0,0.00041095,30]
[310928457,1704822675423,-500.0,0.00041095,30]
[310928458,1704822675433,-500.0,0.00041095,30]
[310928459,1704822675444,-764.23,0.00041095,30]
[310928460,1704822675453,-500.0,0.00041095,30]
[310928461,1704822675463,-507.33409678,0.00041095,30]
[310928462,1704822675473,-500.0,0.00041095,30]
[310928463,1704822675484,-500.0,0.00041095,30]
[310928464,1704822675494,-500.0,0.00041095,30]
[310928465,1704822675504,-500.0,0.00041095,30]
[310928466,1704822675515,-1292.97,0.00041095,30]
[310928467,1704822675524,-2704.06,0.00041095,30]
[310928468,1704822675535,-689.03,0.00041095,30]
[310928469,1704822675546,-897.63,0.00041095,30]
[310928470,1704822675555,-500.0,0.00041095,30]
[310928471,1704822675565,-1997.42,0.00041095,30]
[310928472,1704822675583,-753.25,0.00041095,30]
[310928473,1704822675592,-500.0,0.00041095,30]
[310928474,1704822675607,-863.4,0.00041095,30]
[310928475,1704822675622,-500.0,0.00041095,30]
[310928476,1704822675639,-250.0,0.00041095,7]
[310928477,1704822675656,-500.0,0.00041095,7]
[310928478,1704822675670,-750.0,0.00041095,7]
[310928479,1704822675686,-1000.0,0.00041095,7]
[310928480,1704822675702,-1250.0,0.00041095,7]
[310928481,1704822675720,-1500.0,0.00041095,7]
[310928482,1704822675732,-1750.0,0.00041095,7]
[310928483,1704822675742,-544.19,0.00041095,30]
[310928484,1704822675751,-2000.0,0.00041095,7]
[310928485,1704822675761,-500.0,0.00041095,30]
[310928486,1704822675770,-2250.0,0.00041095,7]
[310928487,1704822675803,-1538.51,0.00041095,30]
[310928488,1704822675813,-2500.0,0.00041095,7]
[310928489,1704822675823,-2750.0,0.00041095,7]
[310928490,1704822675832,-1469.75,0.00041095,30]
[310928491,1704822675842,-500.0,0.00041095,30]
[310928492,1704822675851,-3000.0,0.00041095,7]
[310928493,1704822675860,-2813.51747229,0.00041095,7]
[310928494,1704822675870,-500.0,0.00041095,30]
[310928495,1704822675880,-500.0,0.00041095,30]
[310928496,1704822675889,-744.34,0.00041095,30]
[310928497,1704822675899,-500.0,0.00041095,30]
[310928498,1704822675908,-500.0,0.00041095,30]
[310928499,1704822675918,-500.0,0.00041095,30]
[310928500,1704822675928,-1416.77,0.00041095,30]
[310928501,1704822675939,-1752.19,0.00041095,30]
[310928502,1704822675949,-500.0,0.00041095,10]
[310928503,1704822675959,-500.0,0.00041095,30]
[310928504,1704822675968,-500.0,0.00041095,30]
[310928505,1704822675978,-992.88,0.00041095,30]
[310928506,1704822675988,-907.17,0.00041095,30]
[310928507,1704822675998,-820.02,0.00041095,30]
[310928508,1704822676009,-500.0,0.00041095,30]
[310928509,1704822676018,-696.79,0.00041095,30]
[310928510,1704822676027,-830.16,0.00041095,30]
[310928511,1704822676037,-1042.21,0.00041095,30]
[310928512,1704822676046,-500.0,0.00041095,30]
[310928513,1704822676056,-921.85,0.00041095,30]
[310928514,1704822676066,-500.0,0.00041095,30]
[310928515,1704822676076,-500.0,0.00041095,30]
[310928516,1704822676086,-500.0,0.00041095,30]
[310928517,1704822676096,-500.0,0.00041095,30]
[310928518,1704822676106,-500.0,0.00041095,30]
[310928519,1704822676116,-326.96062521,0.00041095,30]
[310928520,1704822676126,-936.43,0.00041095,30]
[310928521,1704822676135,-500.0,0.00041095,30]
[310928522,1704822676145,-500.0,0.00041095,30]
[310928523,1704822676155,-500.0,0.00041095,30]
[310928524,1704822676165,-500.0,0.00041095,30]
[310928525,1704822676175,-500.0,0.00041095,30]
[310928526,1704822676185,-500.0,0.00041095,30]
[310928527,1704822676195,-500.0,0.00041095,30]
[310928528,1704822676205,-500.0,0.00041095,30]
[310928529,1704822676215,-500.0,0.00041095,30]
[310928530,1704822676225,-500.0,0.00041095,30]
[310928531,1704822676235,-3608.68,0.00041095,30]
[310928532,1704822676245,-500.0,0.00041095,30]
[310928533,1704822676255,-1062.16,0.00041095,30]
[310928534,1704822676264,-500.0,0.00041095,30]
[310928535,1704822676274,-500.0,0.00041095,30]
[310928536,1704822676284,-797.98,0.00041095,30]
[310928537,1704822676295,-848.43,0.00041095,30]
[310928538,1704822676304,-500.0,0.00041095,30]
[310928539,1704822676314,-594.13,0.00041095,30]
[310928540,1704822676323,-2925.38,0.00041095,30]
[310928541,1704822676332,-2925.38,0.00041095,30]
[310928542,1704822676342,-543.9,0.00041095,30]
[310928543,1704822676351,-2925.38,0.00041095,30]
[310928544,1704822676361,-2925.38,0.00041095,30]
[310928545,1704822676370,-2925.38,0.00041095,30]
[310928546,1704822676380,-2925.38,0.00041095,30]
[310928547,1704822676390,-500.0,0.00041095,30]
[310928548,1704822676400,-2925.38,0.00041095,30]
[310928549,1704822676410,-500.0,0.00041095,30]
[310928550,1704822676419,-2925.38,0.00041095,30]
[310928551,1704822676430,-500.0,0.00041095,30]
[310928552,1704822676440,-500.0,0.00041095,30]
[310928553,1704822676449,-2925.38,0.00041095,30]
[310928554,1704822676460,-500.0,0.00041095,30]
[310928555,1704822676470,-500.0,0.00041095,30]
[310928556,1704822676481,-2925.38,0.00041095,30]
[310928557,1704822676675,-500.0,0.00041095,30]
[310928558,1704822676708,-2925.38,0.00041095,30]
[310928559,1704822676719,-631.34028564,0.00041095,30]
[310928560,1704822676729,-2925.38,0.00041095,30]
[310928561,1704822676738,-2925.38,0.00041095,30]
[310928562,1704822676748,-2925.38,0.00041095,30]
[310928563,1704822676758,-2925.38,0.00041095,30]
[310928564,1704822676768,-500.0,0.00041095,30]
[310928565,1704822676778,-2925.38,0.00041095,30]
[310928566,1704822676788,-2925.38,0.00041095,30]
[310928567,1704822676798,-2925.38,0.00041095,30]
[310928568,1704822676808,-2925.38,0.00041095,30]
[310928569,1704822676818,-765.38,0.00041095,30]
[310928570,1704822676828,-1432.21,0.00041095,30]
[310928571,1704822676838,-500.0,0.00041095,30]
[310928572,1704822676848,-2925.38,0.00041095,30]
[310928573,1704822676859,-2925.38,0.00041095,30]
[310928574,1704822676869,-2925.38,0.00041095,30]
[310928575,1704822676879,-2925.38,0.00041095,30]
[310928576,1704822676890,-1359.32,0.00041095,30]
[310928577,1704822676900,-2925.45273221,0.00041095,30]
[310928578,1704822676909,-500.0,0.00041095,30]
[310928579,1704822676919,-500.0,0.00041095,30]
[310928580,1704822676929,-500.0,0.00041095,30]
[310928581,1704822676942,-1854.87,0.00041095,30]
[310928582,1704822676952,-720.0,0.00041095,30]
[310928583,1704822676962,-1281.62,0.00041095,30]
[310928584,1704822676971,-558.71,0.00041095,30]
[310928585,1704822676980,-500.0,0.00041095,30]
[310928586,1704822676990,-1462.19,0.00041095,30]
[310928587,1704822676999,-500.0,0.00041095,30]
[310928588,1704822677009,-500.0,0.00041095,30]
[310928589,1704822677018,-543.96,0.00041095,30]
[310928590,1704822677028,-500.0,0.00041095,30]
[310928591,1704822677037,-637.3043264,0.00041095,30]
[310928592,1704822677047,-1104.04,0.00041095,30]
[310928593,1704822677057,-500.0,0.00041095,30]
[310928594,1704822677067,-503.3687681,0.00041095,30]
[310928595,1704822677079,-651.83,0.00041095,30]
[310928596,1704822677089,-500.0,0.00041095,30]
[310928597,1704822677099,-2707.71,0.00041095,30]
[310928598,1704822677108,-500.0,0.00041095,30]
[310928599,1704822677118,-500.0,0.00041095,30]
[310928600,1704822677129,-500.0,0.00041095,2]
[310928601,1704822677139,-851.87,0.00041095,30]
[310928602,1704822677149,-500.0,0.00041095,30]
[310928603,1704822677159,-500.0,0.00041095,30]
[310928604,1704822677170,-500.0,0.00041095,30]
[310928605,1704822677180,-708.74,0.00041095,30]
[310928606,1704822677193,-500.0,0.00041095,30]
[310928607,1704822677203,-500.0,0.00041095,30]
[310928608,1704822677213,-500.0,0.00041095,30]
[310928609,1704822677224,-500.0,0.00041095,30]
[310928610,1704822677234,-511.51255934,0.00041095,30]
[310928611,1704822677248,-596.03,0.00041095,30]
[310928612,1704822677261,-1208.31,0.00041095,30]
[310928613,1704822677271,-500.0,0.00041095,30]
[310928614,1704822677281,-859.98,0.00041095,30]
[310928615,1704822677291,-1653.94,0.00041095,30]
[310928616,1704822677300,-1009.5,0.00041095,30]
[310928617,1704822677310,-1834.86,0.00041095,30]
[310928618,1704822677320,-500.0,0.00041095,30]
[310928619,1704822677331,-2228.31,0.00041095,30]
[310928620,1704822677341,-500.0,0.00041095,30]
[310928621,1704822677352,-500.0,0.00041095,30]
[310928622,1704822677362,-500.0,0.00041095,30]
[310928623,1704822677372,-500.0,0.00041095,30]
[310928624,1704822677382,-500.0,0.00041095,30]
[310928625,1704822677392,-758.85,0.00041095,30]
[310928626,1704822677402,-850.13,0.00041095,30]
[310928627,1704822677412,-500.0,0.00041095,30]
[310928628,1704822677423,-657.1,0.00041095,30]
[310928629,1704822677434,-500.0,0.00041095,30]
[310928630,1704822677448,-506.67462514,0.00041095,30]
[310928631,1704822677458,-500.0,0.00041095,30]
[310928632,1704822677469,-2251.85,0.00041095,30]
[310928633,1704822677482,-500.0,0.00041095,30]
[310928634,1704822677494,-505.93014412,0.00041095,30]
[310928635,1704822677505,-500.0,0.00041095,30]
[310928636,1704822677515,-1855.79,0.00041095,30]
[310928637,1704822677525,-1305.33,0.00041095,30]
[310928638,1704822677541,-1682.44,0.00041095,30]
[310928639,1704822677552,-500.0,0.00041095,30]
[310928640,1704822677565,-500.0,0.00041095,30]
[310928641,1704822677586,-500.0,0.00041095,30]
[310928642,1704822677602,-1682.44,0.00041095,30]
[310928643,1704822677618,-1682.44,0.00041095,30]
[310928644,1704822677630,-1047.74,0.00041095,30]
[310928645,1704822677640,-1682.44,0.00041095,30]
[310928646,1704822677650,-500.0,0.00041095,30]
[310928647,1704822677667,-1682.44,0.00041095,30]
[310928648,1704822677700,-1682.44,0.00041095,30]
[310928649,1704822677717,-1682.44,0.00041095,30]
[310928650,1704822677729,-500.0,0.00041095,30]
[310928651,1704822677747,-1682.44,0.00041095,30]
[310928652,1704822677763,-500.0,0.00041095,30]
[310928653,1704822677773,-1682.44,0.00041095,30]
[310928654,1704822677783,-1682.44,0.00041095,30]
[310928655,1704822677814,-2864.14,0.00041095,30]
[310928656,1704822677826,-1682.44,0.00041095,30]
[310928657,1704822677838,-1682.44,0.00041095,30]
[310928658,1704822677848,-1682.44,0.00041095,30]
[310928659,1704822677861,-1682.44,0.00041095,30]
[310928660,1704822677872,-500.0,0.00041095,30]
[310928661,1704822677883,-1682.44,0.00041095,30]
[310928662,1704822677893,-1682.44,0.00041095,30]
[310928663,1704822677903,-1682.44,0.00041095,30]
[310928664,1704822677914,-1682.44,0.00041095,30]
[310928665,1704822677930,-1682.44,0.00041095,30]
[310928666,1704822677958,-1682.44,0.00041095,30]
[310928667,1704822677977,-1682.44,0.00041095,30]
[310928668,1704822677991,-1682.44,0.00041095,30]
[310928669,1704822678006,-1682.44,0.00041095,30]
[310928670,1704822678017,-1682.48713311,0.00041095,30]
[310928671,1704822678027,-2179.29,0.00041095,30]
[310928672,1704822678037,-500.0,0.00041095,30]
[310928673,1704822678047,-500.0,0.00041095,30]
[310928674,1704822678057,-500.0,0.00041095,30]
[310928675,1704822678066,-500.0,0.00041095,30]
[310928676,1704822678076,-500.0,0.00041095,30]
[310928677,1704822678085,-514.02,0.00041095,30]
[310928678,1704822678095,-500.0,0.00041095,30]
[310928679,1704822678105,-942.34,0.00041095,30]
[310928680,1704822678115,-1069.4,0.00041095,30]
[310928681,1704822678125,-2011.82,0.00041095,30]
[310928682,1704822678134,-500.0,0.00041095,30]
[310928683,1704822678144,-500.0,0.00041095,30]
[310928684,1704822678154,-380.78531126,0.00041095,30]
[310928685,1704822678163,-1000.0,0.00041095,14]
[310928686,1704822678185,-500.0,0.00041095,30]
[310928687,1704822678205,-500.0,0.00041095,30]
[310928688,1704822678225,-500.0,0.00041095,30]
[310928689,1704822678246,-500.0,0.00041095,30]
[310928690,1704822678262,-1000.0,0.00041095,7]
[310928691,1704822678280,-500.0,0.00041095,30]
[310928692,1704822678300,-1226.36,0.00041095,30]
[310928693,1704822678318,-500.0,0.00041095,30]
[310928694,1704822678337,-500.0,0.00041095,30]
[310928695,1704822678356,-1543.99,0.00041095,30]
[310928696,1704822678377,-1167.82,0.00041095,30]
[310928697,1704822678397,-500.0,0.00041095,30]
[310928698,1704822678411,-1662.23,0.00041095,30]
[310928699,1704822678431,-650.25,0.00041095,30]
[310928700,1704822678451,-500.0,0.00041095,30]
[310928701,1704822678468,-500.0,0.00041095,30]
[310928702,1704822678490,-500.0,0.00041095,30]
[310928703,1704822678510,-1000.0,0.00041095,7]